bitfinex-derivatives/quotes_SOLF0:USTF0_20240905
["timestamp","ask_amount","ask_price","bid_price","bid_amount"]
[1725538922844,0.05457465,132.33,132.3,0.05195892]
[1725538923448,3.7791,132.31,132.3,0.05195892]
[1725538924049,3.7803,132.27,132.24,1.3847]
[1725538924357,3.83366067,132.32,132.22,5.0809]
[1725538924358,34.83,132.31,132.22,1.2992]
[1725538924560,3.7804,132.27,132.22,1.2992]
[1725538925155,0.05193947,132.26,132.23,0.04764534]
[1725538926645,0.05193947,132.26,132.23,1.45334534]
[1725538926846,0.05193947,132.26,132.23,36.28334534]
[1725538927050,34.83,132.36,132.25,34.83]
[1725538927447,3.7794,132.31,132.25,38.6108]
[1725538927860,3.7798,132.29,132.23,36.2357]
[1725538928151,0.05556836,132.27,132.25,0.04867428]
[1725538928357,0.05752263,132.27,132.25,0.05742404]
[1725538929453,34.83,132.36,132.26,34.83]
[1725538929653,3.7786,132.33,132.26,34.83]
[1725538930253,3.779,132.32,132.27,3.7801]
[1725538930557,0.05277305,132.31,132.28,0.05771835]
[1725538930749,0.05314553,132.31,132.28,3.82905094]
[1725538930953,0.05314553,132.31,132.28,34.87905094]
[1725538931153,36.7449,132.38,132.3,34.83]
[1725538931154,1.9149,132.38,132.3,34.83]
[1725538931747,1.9149,132.38,132.3,38.6093]
[1725538931948,3.7783,132.35,132.3,38.6093]
[1725538932153,0.05577719,132.34,132.31,0.04835803]
[1725538932758,3.7789,132.32,132.31,0.04835803]
[1725538938366,0.05577719,132.34,132.31,0.04835803]
[1725538939661,3.7789,132.32,132.31,0.04835803]
[1725538939969,38.5533422,132.34,132.25,1.3838]
[1725538940166,34.83,132.32,132.24,3.781]
[1725538940468,34.83,132.32,132.23,1.4057]
[1725538940767,34.83,132.32,132.23,5.1871]
[1725538940768,3.7806,132.26,132.23,5.1871]
[1725538940962,34.83,132.32,132.23,5.24296659]
[1725538941157,3.7796,132.3,132.23,5.1871]
[1725538941365,0.05180572,132.29,132.26,0.0544654]
[1725538941761,3.7805,132.27,132.26,0.0544654]
[1725538942167,0.05180572,132.29,132.26,0.0544654]
[1725538942770,0.05180572,132.29,132.26,3.8348654]
[1725538942960,0.05180572,132.29,132.26,0.0544654]
[1725538943974,0.05180572,132.29,132.26,3.8349654]
[1725538944167,3.83180572,132.29,132.26,0.0544654]
[1725538944470,0.05180572,132.29,132.26,0.0544654]
[1725538944676,3.7802,132.28,132.26,0.0544654]
[1725538945171,0.05180572,132.29,132.26,0.0544654]
[1725538945675,3.7802,132.28,132.26,0.0544654]
[1725538946961,0.05180572,132.29,132.26,3.8350654]
[1725538946962,3.83160572,132.29,132.26,3.8350654]
[1725538947361,0.05180572,132.29,132.26,0.0544654]
[1725538947564,0.05180572,132.29,132.26,29.0844654]
[1725538948074,0.05180572,132.29,132.27,3.7801]
[1725538948669,0.05180572,132.29,132.26,0.0544654]
[1725538948867,29.08180572,132.29,132.26,0.0544654]
[1725538949273,3.7803,132.27,132.26,0.0544654]
[1725538951273,0.05180572,132.29,132.26,0.0544654]
[1725538951873,3.7803,132.28,132.26,0.0544654]
[1725538952571,3.7803,132.27,132.26,0.0544654]
[1725538955171,3.7801,132.28,132.26,0.0544654]
[1725538956468,3.7803,132.27,132.26,0.0544654]
[1725538957084,32.87406583,132.34,132.1,7.5698]
[1725538957085,29.03,132.28,132.1,7.5698]
[1725538957377,29.03,132.23,132.14,1.4076]
[1725538957874,0.8472,132.27,132.14,1.4076]
[1725538957875,29.03,132.25,132.14,30.4376]
[1725538958070,29.03,132.25,132.15,3.7837]
[1725538958375,29.03,132.25,132.14,1.4076]
[1725538958570,3.7825,132.2,132.15,3.7836]
[1725538958766,3.7825,132.2,132.18,0.05558976]
[1725538959271,3.7826,132.19,132.18,0.05558976]
[1725538960772,0.0534002,132.21,132.18,0.05558976]
[1725538960773,3.7824,132.2,132.18,0.05558976]
[1725538960974,0.0534002,132.21,132.18,0.05558976]
[1725538961380,0.0534002,132.21,132.18,3.83818976]
[1725538962179,0.0534002,132.21,132.19,3.7826]
[1725538963083,0.0534002,132.21,132.18,0.05558976]
[1725538963084,0.0534002,132.21,132.18,3.83838976]
[1725538963381,0.0534002,132.21,132.18,0.05558976]
[1725538965077,3.7823,132.2,132.18,0.05558976]
[1725538965281,0.0534002,132.21,132.18,0.05558976]
[1725538965579,3.7825,132.2,132.18,0.05558976]
[1725538965880,0.0534002,132.21,132.18,0.05558976]
[1725538966285,3.7826,132.19,132.18,0.05558976]
[1725538966985,3.7824,132.2,132.18,0.05558976]
[1725538967380,0.0534002,132.21,132.18,0.05558976]
[1725538968190,3.7823,132.2,132.18,0.05558976]
[1725538968384,0.0534002,132.21,132.18,0.05558976]
[1725538969888,3.7826,132.19,132.18,0.05558976]
[1725538971082,3.7823,132.2,132.18,0.05558976]
[1725538971490,0.0534002,132.21,132.18,0.05558976]
[1725538972481,32.82673198,132.29,132.19,29.03]
[1725538972682,29.03,132.29,132.19,30.4201]
[1725538972876,29.03,132.27,132.19,1.3901]
[1725538973386,0.0571205,132.24,132.22,0.05215763]
[1725538973588,29.0871205,132.24,132.16,1.327]
[1725538973782,29.03,132.24,132.16,1.327]
[1725538974093,3.7824,132.2,132.17,3.7831]
[1725538974481,0.04841063,132.2,132.17,0.05457143]
[1725538974789,29.03,132.27,132.17,29.08457143]
[1725538974986,29.03,132.27,132.17,29.03]
[1725538975185,29.03,132.27,132.16,1.327]
[1725538975386,29.03,132.24,132.16,1.327]
[1725538975787,0.05394758,132.21,132.19,0.05321928]
[1725538979000,3.83614758,132.21,132.19,0.05321928]
[1725538979193,0.05394758,132.21,132.19,0.05321928]
[1725538979896,3.7823,132.2,132.19,0.05321928]
[1725538981303,0.05394758,132.21,132.19,0.05321928]
[1725538981698,0.05394758,132.21,132.2,3.7823]
[1725538982004,3.7809,132.25,132.2,1.3909]
[1725538982200,3.7811,132.25,132.21,3.7818]
[1725538982405,3.8608582,132.29,132.22,3.77836569]
[1725538982603,29.03,132.32,132.22,5.15976569]
[1725538982798,3.83214192,132.28,132.23,29.03]
[1725538983003,3.83214192,132.28,132.26,0.04816087]
[1725538983403,0.05194192,132.28,132.26,0.04816087]
[1725538983901,0.05194192,132.28,132.26,3.82856087]
[1725538984307,0.05194192,132.28,132.26,0.04816087]
[1725538985309,0.05194192,132.28,132.27,3.7803]
[1725538985505,30.2115,132.37,132.27,30.3588]
[1725538985709,0.27794746,132.36,132.28,1.4071]
[1725538986608,0.04895818,132.33,132.31,0.05027057]
[1725538987506,3.7789,132.32,132.31,0.05027057]
[1725538988212,0.04895818,132.33,132.31,0.05027057]
[1725538989417,0.04895818,132.33,132.25,29.03]
[1725538989615,29.03,132.35,132.25,29.03]
[1725538990115,29.03,132.35,132.27,3.7802]
[1725538990312,29.03,132.35,132.25,29.03]
[1725538990616,3.7794,132.3,132.29,0.05431049]
[1725538990815,0.05390563,132.31,132.28,0.05027318]
[1725538991009,3.7799,132.29,132.28,0.05027318]
[1725538992724,3.7795,132.3,132.28,0.05027318]
[1725538994023,3.83310563,132.31,132.28,0.05027318]
[1725538994720,0.05390563,132.31,132.28,3.83007318]
[1725538995116,3.83310563,132.31,132.28,0.05027318]
[1725538995717,3.83310563,132.31,132.28,3.83027318]
[1725538996129,3.7797,132.3,132.28,0.05027318]
[1725538996427,0.05390563,132.31,132.28,0.05027318]
[1725538996624,3.7797,132.29,132.28,0.05027318]
[1725538997723,0.05390563,132.31,132.28,0.05027318]
[1725538998215,3.83330563,132.31,132.28,0.05027318]
[1725538998620,0.05390563,132.31,132.28,0.05027318]
[1725538999225,3.7796,132.3,132.28,0.05027318]
[1725538999619,0.05390563,132.31,132.28,0.05027318]
[1725539000330,0.8503,132.38,132.29,29.03]
[1725539000522,0.8503,132.38,132.3,1.3122]
[1725539000523,3.7789,132.32,132.3,1.3122]
[1725539000723,3.7789,132.32,132.26,29.03]
[1725539001123,3.7789,132.32,132.28,3.7798]
[1725539001421,3.7795,132.3,132.29,0.05711453]
[1725539001625,3.7795,132.3,132.24,30.3422]
[1725539001626,3.7795,132.3,132.28,0.05067831]
[1725539001829,0.05389549,132.3,132.28,0.05067831]
[1725539002422,3.83349549,132.3,132.28,0.05067831]
[1725539003530,0.05389549,132.3,132.28,0.05067831]
[1725539006332,0.05389549,132.3,132.29,3.7797]
[1725539006532,0.05389549,132.3,132.28,0.05067831]
[1725539007129,0.05389549,132.3,132.28,3.83047831]
[1725539007531,0.05389549,132.3,132.28,29.08067831]
[1725539007728,0.05389549,132.3,132.29,3.7797]
[1725539008432,5.09942581,132.39,132.29,3.84327511]
[1725539008633,0.27793432,132.37,132.29,3.84327511]
[1725539008830,3.7789,132.32,132.29,7.62287511]
[1725539009037,3.7789,132.32,132.29,3.7796]
[1725539009532,3.7791,132.31,132.29,0.05274706]
[1725539009730,0.04822058,132.32,132.29,0.05274706]
[1725539010533,3.7794,132.3,132.29,0.05274706]
[1725539016039,29.03,132.3,132.2,25.0]
[1725539016235,29.03,132.28,132.2,25.0]
[1725539016434,3.7819,132.22,132.2,25.0]
[1725539017036,3.782,132.21,132.2,25.05619378]
[1725539017245,3.782,132.21,132.2,24.30979378]
[1725539017541,3.782,132.21,132.2,22.97049378]
[1725539020534,3.782,132.21,132.2,19.11031948]
[1725539034244,29.08225746,132.22,132.04,92.75736778]
[1725539034444,29.03,132.17,132.08,2.7049]
[1725539034644,3.74725228,132.18,132.09,29.03]
[1725539034945,29.03,132.19,132.11,3.7849]
[1725539035339,0.05596912,132.16,132.14,0.0506866]
[1725539035944,0.05596912,132.16,132.14,2.7653866]
[1725539036347,0.05596912,132.16,132.14,6.5491866]
[1725539036847,0.05596912,132.16,132.14,2.7653866]
[1725539037552,3.7837,132.15,132.14,1.3863866]
[1725539037748,0.05596912,132.16,132.14,1.3863866]
[1725539038652,3.7837,132.15,132.14,1.3863866]
[1725539039343,3.7837,132.15,132.14,0.0506866]
[1725539042448,32.8137,132.15,132.14,0.0506866]
[1725539042848,36.57193146,132.15,132.14,0.0506866]
[1725539043152,3.7837,132.15,132.14,0.0506866]
[1725539044851,3.7837,132.15,132.08,5.1645]
[1725539044852,3.7854,132.09,132.08,1.379]
[1725539046554,3.7857,132.08,132.07,0.04902192]
[1725539050949,0.05627674,132.1,132.07,0.04902192]
[1725539051256,29.03,132.15,132.05,31.8372]
[1725539051458,29.03,132.15,132.06,3.7861]
[1725539051959,3.785,132.11,132.07,3.786]
[1725539052360,0.05465267,132.1,132.08,0.052494]
[1725539052757,3.785,132.11,132.08,3.838194]
[1725539052964,32.79533635,132.15,132.08,0.052494]
[1725539052965,3.7853,132.1,132.08,0.052494]
[1725539053256,29.03,132.14,132.08,0.052494]
[1725539053561,32.77602453,132.14,132.08,0.052494]
[1725539053758,0.05130517,132.12,132.08,0.052494]
[1725539054253,3.7854,132.09,132.08,0.052494]
[1725539054656,0.05130517,132.12,132.08,0.052494]
[1725539055754,3.7851,132.11,132.08,0.052494]
[1725539056063,0.05130517,132.12,132.08,0.052494]
[1725539056660,3.7851,132.11,132.08,0.052494]
[1725539057254,3.7853,132.1,132.08,0.052494]
[1725539057561,29.08130517,132.12,132.08,0.052494]
[1725539057952,23.26,132.11,132.08,0.052494]
[1725539058556,3.7854,132.09,132.08,0.052494]
[1725539059361,27.0454,132.09,132.08,0.052494]
[1725539062263,3.7854,132.09,132.08,0.052494]
[1725539066957,27.0454,132.09,132.08,0.052494]
[1725539070769,3.7854,132.09,132.08,0.052494]
[1725539073773,3.7853,132.1,132.08,0.052494]
[1725539074375,3.7854,132.09,132.08,0.052494]
[1725539076874,0.05130517,132.12,132.08,0.052494]
[1725539077275,3.785,132.11,132.08,0.052494]
[1725539077472,3.785,132.11,132.08,1.437994]
[1725539077874,0.05130517,132.12,132.08,1.437994]
[1725539078082,3.8611574,132.15,132.09,23.26]
[1725539078279,23.26,132.16,132.08,1.3855]
[1725539078480,23.26,132.14,132.08,1.3855]
[1725539078983,3.7857,132.09,132.04,3.7867]
[1725539079171,0.0489083,132.08,132.05,0.05125829]
[1725539079477,0.0489083,132.08,132.05,3.83785829]
[1725539079776,0.0489083,132.08,132.05,0.05125829]
[1725539080575,3.8347083,132.08,132.05,0.05125829]
[1725539082482,3.7863,132.06,132.05,0.05125829]
[1725539082681,0.0489083,132.08,132.05,0.05125829]
[1725539083288,0.0489083,132.08,132.05,3.83785829]
[1725539083482,0.0489083,132.08,132.05,0.05125829]
[1725539083979,0.0489083,132.08,132.05,3.83765829]
[1725539085385,3.8347083,132.08,132.05,3.83765829]
[1725539085784,0.0489083,132.08,132.05,0.05125829]
[1725539086184,3.7862,132.07,132.05,0.05125829]
[1725539086688,3.7863,132.06,132.05,0.05125829]
[1725539087187,3.7861,132.07,132.05,0.05125829]
[1725539087783,3.8348083,132.08,132.05,3.83765829]
[1725539087984,0.0489083,132.08,132.05,0.05125829]
[1725539088380,3.786,132.07,132.05,0.05125829]
[1725539088687,0.0489083,132.08,132.05,0.05125829]
[1725539089180,3.8348083,132.08,132.05,3.83785829]
[1725539089586,3.786,132.07,132.05,3.83785829]
[1725539090180,3.8347083,132.08,132.05,3.83785829]
[1725539090379,0.0489083,132.08,132.05,0.05125829]
[1725539090779,3.8349083,132.08,132.05,0.05125829]
[1725539090986,3.8349083,132.08,132.05,3.83765829]
[1725539091687,3.8349083,132.08,132.06,3.7863]
[1725539091889,0.0489083,132.08,132.06,3.7863]
[1725539092283,3.7862,132.07,132.05,0.05125829]
[1725539092485,0.0489083,132.08,132.05,0.05125829]
[1725539093090,3.7862,132.07,132.05,0.05125829]
[1725539094283,3.7863,132.06,132.05,0.05125829]
[1725539095280,23.26,132.06,132.01,1.3242]
[1725539095485,23.26,132.04,131.97,2.7684]
[1725539095982,3.7879,132.01,131.98,3.7886]
[1725539096179,3.78872812,132.03,131.97,2.7684]
[1725539096582,0.05356653,132.01,131.99,0.05304183]
[1725539097390,3.788,132.0,131.99,0.05304183]
[1725539098284,3.84136653,132.01,131.99,0.05304183]
[1725539099283,3.788,132.0,131.99,0.05304183]
[1725539099787,0.05356653,132.01,131.99,0.05304183]
[1725539100388,3.788,132.0,131.99,0.05304183]
[1725539100589,0.05356653,132.01,131.99,0.05304183]
[1725539101588,3.84146653,132.01,131.99,0.05304183]
[1725539101784,0.05356653,132.01,131.99,0.05304183]
[1725539102183,0.05356653,132.01,131.99,2.83364183]
[1725539102589,3.7872,132.03,131.99,2.83364183]
[1725539102893,23.26,132.06,131.99,4.18684183]
[1725539103092,3.73142797,132.05,131.99,4.18684183]
[1725539103699,0.05082056,132.03,131.99,4.18684183]
[1725539103895,3.7876,132.02,131.99,4.18684183]
[1725539104397,0.05082056,132.03,131.99,2.83364183]
[1725539104590,3.7875,132.02,131.99,2.83364183]
[1725539104786,0.05082056,132.03,131.99,1.42274183]
[1725539105290,3.788,132.0,131.99,1.42274183]
[1725539106291,3.7878,132.01,131.99,1.42274183]
[1725539107285,3.788,132.0,131.99,1.42274183]
[1725539107490,23.31082056,132.03,131.99,0.05304183]
[1725539107686,0.05082056,132.03,131.99,0.05304183]
[1725539108085,3.788,132.01,131.99,0.05304183]
[1725539108990,3.7876,132.02,131.99,0.05304183]
[1725539109195,0.05082056,132.03,131.99,0.05304183]
[1725539109396,0.05082056,132.03,132.0,23.26]
[1725539109594,3.83802056,132.03,132.0,23.26]
[1725539109990,0.05082056,132.03,131.99,0.05304183]
[1725539110186,3.788,132.0,131.99,0.05304183]
[1725539110896,7.5531607,132.0,131.99,0.05304183]
[1725539111197,3.788,132.0,131.99,0.05304183]
[1725539111400,7.50464645,132.0,131.99,0.05304183]
[1725539111690,3.788,132.0,131.99,0.05304183]
[1725539112695,23.26,132.01,131.99,0.05304183]
[1725539112896,3.70034869,132.0,131.99,0.05304183]
[1725539113096,23.26,132.01,131.95,1.3776]
[1725539113296,23.26,131.99,131.92,23.26]
[1725539113495,23.26,132.01,131.92,23.26]
[1725539113690,27.0479,132.01,131.92,23.26]
[1725539113996,23.26,132.03,131.95,23.26]
[1725539114192,0.05529447,132.0,131.98,0.05379564]
[1725539114402,0.05529447,132.0,131.98,3.84229564]
[1725539114695,0.05529447,132.0,131.98,0.05379564]
[1725539115096,0.05529447,132.0,131.99,3.7883]
[1725539116499,0.05529447,132.0,131.98,0.05379564]
[1725539117600,0.05529447,132.0,131.99,3.7883]
[1725539118000,0.05529447,132.0,131.98,3.84229564]
[1725539118395,0.05529447,132.0,131.98,0.05379564]
[1725539120506,3.84339447,132.0,131.98,0.05379564]
[1725539121207,0.05529447,132.0,131.98,0.05379564]
[1725539121606,0.05529447,132.0,131.98,3.84219564]
[1725539122312,0.05529447,132.0,131.98,0.05379564]
[1725539123011,3.84339447,132.0,131.98,0.05379564]
[1725539123213,23.31529447,132.0,131.98,0.05379564]
[1725539124304,3.7883,131.99,131.98,0.05379564]
[1725539124509,0.05529447,132.0,131.98,0.05379564]
[1725539125309,3.84349447,132.0,131.98,0.05379564]
[1725539125915,0.05529447,132.0,131.98,0.05379564]
[1725539126514,3.84329447,132.0,131.98,0.05379564]
[1725539126815,0.05529447,132.0,131.98,0.05379564]
[1725539127212,0.05529447,132.0,131.98,23.31379564]
[1725539127611,0.05529447,132.0,131.99,3.7883]
[1725539131311,0.05529447,132.0,131.98,0.05379564]
[1725539131710,0.05529447,132.0,131.98,3.84239564]
[1725539132313,0.05529447,132.0,131.98,0.05379564]
[1725539132517,3.84801929,132.0,131.98,0.05379564]
[1725539133016,3.7883,131.99,131.98,0.05379564]
[1725539133626,3.7893,131.96,131.91,23.26]
[1725539133915,23.26,131.98,131.9,24.5518]
[1725539134722,3.83843535,131.96,131.94,0.05292589]
[1725539136417,0.04903535,131.96,131.94,3.84262589]
[1725539136720,0.04903535,131.96,131.94,0.05292589]
[1725539138126,3.7895,131.95,131.94,0.05292589]
[1725539138422,0.04903535,131.96,131.94,0.05292589]
[1725539138722,3.7895,131.95,131.94,0.05292589]
[1725539146427,0.04903535,131.96,131.94,0.05292589]
[1725539147020,3.7895,131.95,131.94,0.05292589]
[1725539147420,0.04903535,131.96,131.94,0.05292589]
[1725539147620,3.7895,131.95,131.94,0.05292589]
[1725539152423,3.83823535,131.96,131.94,0.05292589]
[1725539152631,0.04903535,131.96,131.94,0.05292589]
[1725539153032,3.7895,131.95,131.94,0.05292589]
[1725539154432,3.83833535,131.96,131.94,0.05292589]
[1725539154930,3.7895,131.95,131.94,0.05292589]
[1725539155324,0.04903535,131.96,131.94,0.05292589]
[1725539155531,3.83833535,131.96,131.94,0.05292589]
[1725539155932,0.04903535,131.96,131.94,0.05292589]
[1725539156528,0.04903535,131.96,131.94,9.37292589]
[1725539156829,9.32,132.01,131.95,11.9824]
[1725539157036,18.26807863,132.13,132.0,9.32]
[1725539157227,3.7843,132.13,132.07,9.32]
[1725539157423,7.11217622,132.21,132.08,1.3764]
[1725539157622,0.27831759,132.2,132.18,9.32]
[1725539157825,0.27827485,132.29,132.19,9.32]
[1725539158027,3.86003487,132.3,132.22,9.32]
[1725539158227,9.59810531,132.29,132.09,101.67164383]
[1725539158428,3.71104708,132.29,132.19,9.32]
[1725539158635,9.32,132.26,132.19,9.32]
[1725539158842,0.05015919,132.24,132.21,0.05627176]
[1725539159031,0.05015919,132.24,132.09,101.67164383]
[1725539159337,9.32,132.19,132.13,13.1041]
[1725539159631,9.32,132.19,132.09,101.67164383]
[1725539159934,9.32,132.19,132.09,29.09]
[1725539159935,7.64053938,132.18,132.09,29.09]
[1725539160135,3.783,132.18,132.12,0.05011813]
[1725539160436,0.05242717,132.15,132.12,0.05011813]
[1725539160734,3.7826,132.19,132.13,29.09]
[1725539160932,29.09,132.23,132.11,29.09]
[1725539161122,29.09,132.21,132.11,29.09]
[1725539161324,29.09,132.19,132.08,1.3764]
[1725539161726,0.05649438,132.15,132.12,0.05587362]
[1725539161935,0.05395997,132.15,132.12,0.05775635]
[1725539162332,29.09,132.25,132.13,29.09]
[1725539162633,32.79769149,132.25,132.15,29.09]
[1725539162939,29.09,132.25,132.15,29.09]
[1725539163336,0.05250421,132.21,132.19,0.05629117]
[1725539163537,0.054605,132.21,132.19,0.05293886]
[1725539163837,0.27816216,132.27,132.21,3.7819]
[1725539164035,3.7802,132.28,132.19,29.09]
[1725539164036,29.09,132.28,132.19,29.09]
[1725539164339,29.09,132.26,132.17,29.09]
[1725539164539,29.09,132.26,132.19,3.7824]
[1725539164740,0.04891495,132.24,132.21,0.05552698]
[1725539165838,1.2898,132.29,132.21,29.14552698]
[1725539166041,1.2898,132.29,132.23,29.09]
[1725539166345,32.80339241,132.33,132.23,29.09]
[1725539166547,30.4649,132.35,132.27,3.7803]
[1725539166738,2.6972,132.38,132.27,29.09]
[1725539167042,0.27798279,132.37,132.31,0.04787936]
[1725539167445,31.7872,132.38,132.31,0.04787936]
[1725539167643,0.27794192,132.37,132.31,0.04787936]
[1725539168240,1.3252,132.38,132.31,29.13787936]
[1725539168542,1.3252,132.38,132.31,0.04787936]
[1725539168845,1.3252,132.38,132.32,29.09]
[1725539169044,1.3252,132.38,132.34,0.05813054]
[1725539169345,30.4149,132.42,132.34,0.05813054]
[1725539169542,30.4149,132.42,132.37,0.0497442]
[1725539169747,30.4808,132.46,132.37,0.0497442]
[1725539169935,0.27780294,132.45,132.4,0.05570225]
[1725539170247,3.7755,132.44,132.41,0.0564536]
[1725539170443,3.7755,132.44,132.41,0.0482716]
[1725539170754,0.27780294,132.45,132.41,0.0482716]
[1725539171245,0.27780294,132.45,132.41,3.8243716]
[1725539171447,0.27780294,132.45,132.44,29.09]
[1725539171642,1.3409,132.52,132.44,29.09]
[1725539171840,1.3908,132.54,132.47,0.05764494]
[1725539172048,1.3908,132.54,132.49,0.05718869]
[1725539172444,3.7729,132.53,132.49,0.05718869]
[1725539172944,7.88230897,132.65,132.49,0.05718869]
[1725539173146,7.88230897,132.65,132.46,29.09]
[1725539173147,1.3441,132.59,132.55,0.05212513]
[1725539173348,29.09,132.56,132.46,29.09]
[1725539173550,29.09,132.56,132.5,0.05232185]
[1725539173951,34.77,132.55,132.5,0.05232185]
[1725539174244,34.77,132.55,132.51,0.05749998]
[1725539174449,34.77,132.57,132.52,0.056599]
[1725539174743,0.27756622,132.56,132.53,0.04858387]
[1725539174948,0.27756622,132.56,132.53,0.05091083]
[1725539175351,0.05801506,132.52,132.44,34.77]
[1725539175544,34.77,132.57,132.46,34.77]
[1725539175850,3.7732,132.52,132.43,34.77]
[1725539176243,3.7732,132.52,132.46,34.77]
[1725539176440,0.05066977,132.5,132.48,0.0528767]
[1725539176645,0.04922105,132.5,132.48,0.05594552]
[1725539178851,3.82312105,132.5,132.48,0.05594552]
[1725539179248,0.04922105,132.5,132.42,36.079]
[1725539179446,3.7743,132.48,132.43,3.7756]
[1725539179652,3.70185772,132.52,132.42,36.079]
[1725539179843,34.77,132.53,132.42,36.079]
[1725539180047,3.79587675,132.52,132.43,3.7757]
[1725539180247,0.05081552,132.49,132.46,0.04842561]
[1725539180453,38.53264914,132.49,132.38,34.77]
[1725539180655,34.77,132.49,132.38,34.77]
[1725539180955,3.85817852,132.48,132.38,34.77]
[1725539181253,34.77,132.49,132.39,3.7768]
[1725539181450,34.77,132.49,132.37,1.3584]
[1725539181656,0.05530207,132.44,132.42,0.04963057]
[1725539181848,3.8313636,132.44,132.42,0.04963057]
[1725539182350,0.0557636,132.44,132.42,0.04963057]
[1725539183442,3.8312636,132.44,132.42,0.04963057]
[1725539183652,0.0557636,132.44,132.42,0.04963057]
[1725539184147,3.7757,132.43,132.42,0.04963057]
[1725539184351,0.0557636,132.44,132.42,0.04963057]
[1725539185849,3.8311636,132.44,132.42,0.04963057]
[1725539186049,0.0557636,132.44,132.42,0.04963057]
[1725539189253,0.0557636,132.44,132.42,3.82563057]
[1725539189953,0.0557636,132.44,132.43,3.7757]
[1725539190158,1.2838,132.56,132.42,34.81963057]
[1725539190358,2.6594,132.53,132.44,34.77]
[1725539190548,2.6594,132.53,132.44,38.5453]
[1725539191156,0.04890724,132.5,132.47,0.0484412]
[1725539191857,34.77,132.5,132.4,34.77]
[1725539192052,3.7748,132.47,132.42,3.7759]
[1725539192953,0.05277415,132.46,132.43,0.05037274]
[1725539194158,0.05277415,132.46,132.44,34.77]
[1725539195454,0.05277415,132.46,132.45,3.7751]
[1725539195656,2.6594,132.53,132.44,38.54435413]
[1725539195959,3.7733,132.52,132.49,29.01]
[1725539196457,1.3302,132.53,132.47,32.7844]
[1725539196651,3.82976997,132.51,132.49,0.05539042]
[1725539197458,0.05626997,132.51,132.49,29.06539042]
[1725539199063,0.05626997,132.51,132.5,3.7737]
[1725539199357,0.05626997,132.51,132.49,29.06539042]
[1725539199564,0.05626997,132.51,132.49,32.83939042]
[1725539200361,0.05626997,132.51,132.49,29.06539042]
[1725539200564,0.05626997,132.51,132.49,0.05539042]
[1725539200957,0.05626997,132.51,132.49,3.82919042]
[1725539201755,0.05626997,132.51,132.5,3.7737]
[1725539202256,0.05626997,132.51,132.49,0.05539042]
[1725539203461,0.05626997,132.51,132.5,29.01]
[1725539203664,2.6237,132.58,132.5,29.01]
[1725539203964,2.6237,132.58,132.52,29.01]
[1725539204155,2.6237,132.58,132.51,29.01]
[1725539204355,2.6237,132.58,132.46,29.01]
[1725539204356,2.6237,132.58,132.49,29.01]
[1725539204763,3.7725,132.55,132.49,29.01]
[1725539205066,0.05097743,132.55,132.52,0.05075124]
[1725539206063,0.05097743,132.55,132.46,29.01]
[1725539206064,29.01,132.55,132.46,29.01]
[1725539206663,29.01,132.57,132.46,29.01]
[1725539207165,0.0482571,132.53,132.5,0.05137985]
[1725539207863,0.0482571,132.53,132.5,29.06137985]
[1725539208257,0.0482571,132.53,132.5,0.05137985]
[1725539211068,3.8211571,132.53,132.5,0.05137985]
[1725539211267,0.0482571,132.53,132.5,0.05137985]
[1725539212465,3.7732,132.52,132.5,0.05137985]
[1725539212670,0.0482571,132.53,132.5,0.05137985]
[1725539213162,3.8213571,132.53,132.5,0.05137985]
[1725539213770,0.0482571,132.53,132.5,0.05137985]
[1725539214366,3.7734,132.51,132.5,0.05137985]
[1725539214563,0.0482571,132.53,132.5,0.05137985]
[1725539215168,3.7734,132.51,132.5,0.05137985]
[1725539215368,0.0482571,132.53,132.5,0.05137985]
[1725539215764,3.85684895,132.53,132.45,30.3329]
[1725539215967,29.01,132.53,132.43,29.01]
[1725539216169,3.77302903,132.53,132.45,29.01]
[1725539216363,3.78888685,132.53,132.45,29.01]
[1725539216774,0.05722301,132.5,132.48,0.05412794]
[1725539217770,0.05722301,132.5,132.49,3.774]
[1725539217978,0.05722301,132.5,132.49,32.784]
[1725539218473,0.05722301,132.5,132.48,3.82832794]